[Event "Srdja Dragasevic Memorial-A 2024"]
[Site "Cetinje"]
[Date "2024.06.23"]
[Round "2.1"]
[White "Karthik Venkataraman"]
[Black "Nikolic, Nebojsa"]
[Result "1-0"]
[ECO "D02"]
[WhiteElo "2590"]
[BlackElo "2268"]
[Annotator "TA"]
[PlyCount "57"]
[EventDate "2024.06.23"]
[EventType "swiss"]
[EventCountry "MNE"]
[SourceTitle "playchess.com"]
[Source "ChessBase"]
[SourceQuality "1"]
[TimeControl "40/5400+30:1800+30"]

{[%evp 9,57,34,28,29,32,35,32,37,43,31,56,49,51,45,43,23,79,87,87,58,106,112,135,137,147,155,197,207,193,204,191,201,221,231,232,231,229,231,256,255,254,253,245,247,350,310,437,447,655,452]} 1. d4 {[%emt 0:01:33]} d5 {[%emt 0:00:12]} 2. Nf3 {[%emt 0:00:12]} Nf6 {[%emt 0:00:30][%cal Bg8f6,Bf6e4,Be4d2][%mdl 32]} 3. c3 {[%emt 0:00:11]} c6 {[%emt 0:03:07]} 4. h3 {[%emt 0:02:19]} g6 {[%emt 0:03:41]} 5. Bf4 {[%emt 0:00:41]} Qb6 {[%emt 0:03:10]} 6. Qb3 {[%emt 0:02:38]} Ne4 {[%emt 0:03:59]} 7. Nbd2 {[%emt 0:01:16]} Nxd2 {[%emt 0:01:42]} 8. Nxd2 {[%emt 0:00:08] White is slightly better.} Bg7 {[%emt 0:01:40]} 9. e4 {[%emt 0:02:49]} O-O {[%emt 0:07:09]} 10. exd5 {[%emt 0:02:14]} cxd5 {[%emt 0:00:12]} 11. Qxb6 {[%emt 0:00:33]} (11. Qxd5 $2 Qxb2 12. Rd1 Qxc3 $19) 11... axb6 {[%emt 0:00:04]} 12. Bc7 {[%emt 0:00:26]} e5 {[%emt 0:08:35]} 13. dxe5 $16 {[%emt 0:00:39] White is more active. Black is on the road to losing.} (13. Bxe5 Re8 $14) 13... Nc6 {[%emt 0:05:55]} 14. Nf3 {[%emt 0:13:49][%cal Oa2a3]} f6 {[%emt 0:10:08]} (14... Re8 $14 {is more appropriate.}) 15. exf6 {[%emt 0:01:44]} Re8+ {[%emt 0:00:34]} 16. Be2 {[%emt 0:08:02]} Bxf6 {[%emt 0:00:32]} 17. Bxb6 {[%emt 0:00:05]} d4 {[%emt 0:04:00]} 18. Bxd4 {[%emt 0:00:11]} (18. Nxd4 Ra6 19. Bc5 Nxd4 20. Bxd4 (20. cxd4 $2 Rae6 $19) 20... Bxd4 $11) 18... Nxd4 {[%emt 0:00:45]} 19. Nxd4 {[%emt 0:00:39]} ({Don't do} 19. cxd4 $6 Bd7 $16) 19... Bxd4 {[%emt 0:01:49]} 20. cxd4 {[%emt 0:00:06]} Ra4 {[%emt 0:00:09]} 21. b3 {[%emt 0:03:24]} Rxd4 {[%emt 0:00:24] [#] Strongly threatening ...Rde4.} 22. Rd1 {[%emt 0:00:14]} Rde4 {[%emt 0:00:19]} 23. Rd2 {[%emt 0:00:02]} b5 {[%emt 0:05:37]} 24. f3 {[%emt 0:00:06]} R4e5 {[%emt 0:03:24]} 25. Kf2 {[%emt 0:00:16]} Be6 {[%emt 0:00:53]} 26. Rc1 {[%emt 0:00:11]} b4 {[%emt 0:00:33]} (26... Re7 {might work better.} 27. Rc6 g5) 27. Rc7 {[%emt 0:00:28]} Ra8 {[%emt 0:01:04]} (27... Ra5 {keeps fighting.} 28. Rb7 Rea8) 28. Re7 $18 {[%emt 0:00:17]} Rd5 {[%emt 0:06:15]} (28... Kf8 $142) 29. Rc2 {[%emt 0:00:05] Weighted Error Value: White=0.05 (flawless) /Black=0.35.  Mistake:       	---       	Black=5      Inaccurate:     	White=2     	---        OK:         	White=15    	Black=7} 1-0

[Event "Srdja Dragasevic Memorial-A 2024"]
[Site "Cetinje"]
[Date "2024.06.23"]
[Round "2.2"]
[White "Holland, James P"]
[Black "Petrov, Nikita"]
[Result "1/2-1/2"]
[ECO "C14"]
[WhiteElo "2252"]
[BlackElo "2566"]
[Annotator "TA"]
[PlyCount "46"]
[EventDate "2024.06.23"]
[EventType "swiss"]
[EventCountry "MNE"]
[SourceTitle "playchess.com"]
[Source "ChessBase"]
[SourceQuality "1"]
[TimeControl "40/5400+30:1800+30"]

{[%evp 9,46,12,30,25,47,43,32,43,53,44,45,45,139,55,60,27,38,19,29,22,46,32,36,24,55,28,41,-43,-29,-36,-24,-56,84,86,95,95,72,65,81]} 1. e4 {[%emt 0:01:33]} e6 {[%emt 0:00:20]} 2. d4 {[%emt 0:03:37]} d5 {[%emt 0:00:24]} 3. Nc3 {[%emt 0:00:04]} Nf6 {[%emt 0:01:35]} 4. Bg5 {[%emt 0:00:55]} Be7 {[%emt 0:06:44]} 5. e5 {[%emt 0:04:23]} Ne4 {[%emt 0:00:07]} 6. Nxe4 {[%emt 0:04:46] [#] Black must now prevent Bxe7.} dxe4 {[%emt 0:00:19]} 7. h4 {[%emt 0:02:35]} Bxg5 {[%emt 0:03:32]} 8. hxg5 {[%emt 0:02:01]} c5 {[%emt 0:08:01]} 9. dxc5 {[%emt 0:11:27]} Qxg5 {[%emt 0:05:57]} 10. Rh5 {[%emt 0:00:27]} Qg6 {[%emt 0:05:19]} (10... Qd8 $14) 11. g4 {[%emt 0:21:39] White is more active.} ({White should play} 11. Nh3 $16 e3 12. Qe2 (12. fxe3 Qg3+ 13. Kd2 Nd7 $14)) 11... O-O $14 {[%emt 0:10:20]} 12. Nh3 {[%emt 0:00:08][%cal Bg1h3,Bh3f4,Bf4d3][%mdl 32]} f6 $1 {[%emt 0:00:59]} 13. Qe2 {[%emt 0:09:44]} Nc6 {[%emt 0:04:28] Strongly threatening ...Nd4.} 14. Nf4 {[%emt 0:00:26]} Qf7 {[%emt 0:00:12]} 15. Qxe4 {[%emt 0:00:42][%csl Gh5][%cal Re4h7]} g6 {[%emt 0:00:14]} 16. Rh2 $36 {[%emt 0:06:29][%mdl 2048] With the idea 0-0-0. White has the initiative.} Nxe5 {[%emt 0:01:43]} 17. Nd3 {[%emt 0:00:02]} Nc6 {[%emt 0:04:19]} 18. f4 {[%emt 0:00:19]} (18. O-O-O $14) 18... f5 $1 $15 {[%emt 0:08:42]} 19. gxf5 {[%emt 0:05:18]} exf5 {[%emt 0:00:10]} 20. Qa4 {[%emt 0:00:03]} Rd8 {[%emt 0:05:55]} (20... Re8+ $15 {keeps the upper hand.} 21. Re2 Re4 22. Rxe4 fxe4 23. Qxe4 Bf5) 21. O-O-O $16 {[%emt 0:01:39]} Rd4 {[%emt 0:02:18] [#]} 22. Qa3 {[%emt 0:00:04]} Be6 {[%emt 0:02:29][%cal Oa8d8]} 23. Rhd2 {[%emt 0:02:11]} Qc7 {[%emt 0:08:02] Prevents Ne5.   Weighted Error Value: White=0.16 (very precise) /Black=0.20 (precise) .  Mistake:       	White=2     	Black=2      Inaccurate:     	White=2     	---        OK:         	White=8     	Black=5      Best:        	White=2     	Black=3      Strong:       	---       	Black=2} 1/2-1/2

[Event "Srdja Dragasevic Memorial-A 2024"]
[Site "Cetinje"]
[Date "2024.06.23"]
[Round "2.3"]
[White "Miletic, Vuk"]
[Black "Saraci, Nderim"]
[Result "0-1"]
[ECO "D02"]
[WhiteElo "2193"]
[BlackElo "2449"]
[Annotator "TA"]
[PlyCount "38"]
[EventDate "2024.06.23"]
[EventType "swiss"]
[EventCountry "MNE"]
[SourceTitle "playchess.com"]
[Source "ChessBase"]
[SourceQuality "1"]
[TimeControl "40/5400+30:1800+30"]

{[%evp 9,38,16,13,-17,-27,-66,-43,-127,-127,-117,-110,-132,-109,-114,-98,-111,-109,-538,-567,-569,-564,-574,-568,-552,-568,-593,-505,-510,-523,-472,-53]} 1. d4 {[%emt 0:14:59]} d5 {[%emt 0:01:10]} 2. Nf3 {[%emt 0:00:12]} Nf6 {[%emt 0:00:48]} 3. Bf4 {[%emt 0:00:10]} Bf5 {[%emt 0:02:10]} 4. c4 {[%emt 0:00:54]} e6 {[%emt 0:00:10]} 5. Qb3 {[%emt 0:03:30]} Nbd7 {[%emt 0:00:14]} 6. Nc3 {[%emt 0:13:29]} dxc4 {[%emt 0:01:50]} 7. Qxb7 {[%emt 0:13:16]} Rb8 {[%emt 0:04:56]} 8. Qc6 {[%emt 0:03:37]} (8. Qxc7 $15 Qxc7 (8... Rxb2 9. Qxd8+ Kxd8 10. a3 $15) 9. Bxc7 Rxb2 10. Ba5) 8... Rxb2 $17 {[%emt 0:03:00]} 9. a3 {[%emt 0:12:03][%cal Oe2e4] [#] Prevents Bb4.} Bd6 $1 {[%emt 0:14:23][%mdl 512]} 10. Ne5 {[%emt 0:19:52]} Rc2 $36 {[%emt 0:09:45][%mdl 2048] Black has strong initiative.} 11. Rc1 {[%emt 0:05:18]} O-O {[%emt 0:19:26] And now ...Nxe5 would win. Some like it hot} (11... Bxa3 {simplifies} 12. Rxc2 Bxc2 13. Qxc4 c5) 12. Rxc2 {[%emt 0:00:57]} Bxc2 {[%emt 0:00:05]} 13. e3 $2 {[%emt 0:06:23][%mdl 8192]} (13. Qxc4 $17 Nb6 (13... Bxa3 14. Bd2 $17) 14. Qa2) 13... Bxe5 $19 {[%emt 0:07:26] Black is clearly winning.} (13... Bxa3 14. Nxd7 Qxd7 15. Qxd7 Nxd7 16. Bxc4 $14) 14. dxe5 {[%emt 0:00:48] [#]} Ne4 {[%emt 0:00:17][%mdl 512]} 15. Qxc4 {[%emt 0:01:52] [#]} Ndc5 {[%emt 0:01:56]} 16. Qd4 {[%emt 0:00:32]} Nxc3 {[%emt 0:00:21] Excellent horsemanship.} 17. Bc4 {[%emt 0:00:34]} Qxd4 {[%emt 0:02:23]} 18. exd4 {[%emt 0:00:01]} Bd3 {[%emt 0:01:35]} 19. Kd2 {[%emt 0:00:00]} N5e4+ $2 {[%emt 0:00:00] White did not feel at home in the position after the opening.   Weighted Error Value: White=0.56/Black=0.11 (very precise) .  Loses game:     	White=1     	---        Missed win:     	---       	Black=1      Mistake:       	White=1     	---        Inaccurate:     	White=1     	---        OK:         	White=4     	Black=7      Best:        	White=2     	Black=2      Brilliant:      	---       	Black=1} ({Black should try} 19... N3e4+ $19 20. Ke3 Bxc4 21. dxc5 Bd5 (21... Nxc5 22. Rc1 $17)) 0-1

[Event "Srdja Dragasevic Memorial-A 2024"]
[Site "Cetinje"]
[Date "2024.06.23"]
[Round "2.4"]
[White "Milanovic, Danilo"]
[Black "Abdulkarimli, Eljan"]
[Result "1-0"]
[ECO "D14"]
[WhiteElo "2438"]
[BlackElo "2124"]
[Annotator "TA"]
[PlyCount "87"]
[EventDate "2024.06.23"]
[EventType "swiss"]
[EventCountry "MNE"]
[SourceTitle "playchess.com"]
[Source "ChessBase"]
[SourceQuality "1"]
[TimeControl "40/5400+30:1800+30"]

{[%evp 22,87,18,14,16,33,77,59,58,39,77,51,49,51,100,54,141,112,132,120,128,114,215,88,87,88,83,24,33,28,97,84,90,76,177,133,214,233,218,237,210,197,207,148,338,326,331,348,401,391,462,399,519,515,509,500,752,712,2255,1975,29986,29987,29987,29988,29988,5114,5114,5102]} 1. d4 {[%emt 0:01:39]} d5 {[%emt 0:00:31]} 2. c4 {[%emt 0:00:19]} c6 {[%emt 0:00:07]} 3. cxd5 {[%emt 0:00:40]} cxd5 {[%emt 0:00:40]} 4. Nc3 {[%emt 0:00:11]} Nf6 {[%emt 0:01:20]} 5. Bf4 {[%emt 0:00:06]} Nc6 {[%emt 0:06:34][%cal Bb8c6,Bc6a5,Ba5c4][%mdl 32]} 6. e3 {[%emt 0:00:21]} Bf5 {[%emt 0:05:34]} 7. Qb3 {[%emt 0:04:02]} Na5 {[%emt 0:08:57]} 8. Qa4+ {[%emt 0:00:08]} Bd7 {[%emt 0:01:23]} 9. Qc2 {[%emt 0:00:07]} Rc8 {[%emt 0:02:41]} 10. Bd3 {[%emt 0:02:40]} b5 {[%emt 0:08:29]} 11. a3 {[%emt 0:02:09]} e6 {[%emt 0:04:01]} 12. Nf3 {[%emt 0:08:24]} Nc4 {[%emt 0:03:56]} 13. O-O {[%emt 0:15:47]} Qb6 {[%emt 0:05:41]} 14. Rfc1 {[%emt 0:08:13]} Be7 {[%emt 0:04:22] White is slightly better.} 15. Qe2 {[%emt 0:12:27]} Nh5 {[%emt 0:24:14]} 16. Bg5 {[%emt 0:02:45]} Bxg5 $1 {[%emt 0:01:55]} 17. Nxg5 {[%emt 0:00:06]} g6 {[%emt 0:02:49]} (17... Nf6 $14 {is more appropriate.}) 18. Nf3 {[%emt 0:06:51] White is more active.} (18. h4 $16) 18... f5 {[%emt 0:02:46]} (18... O-O $14) 19. Ne5 {[%emt 0:01:29]} Nxe5 {[%emt 0:03:05]} 20. dxe5 {[%emt 0:00:08]} a6 {[%emt 0:00:52]} 21. a4 {[%emt 0:09:53][%cal Ra4b5]} f4 {[%emt 0:03:00]} (21... d4 $16) 22. g4 {[%emt 0:01:50]} (22. axb5 $18 {and the rest is easy. And now Na4 would win.} axb5 23. Bxb5) 22... fxg3 $16 {[%emt 0:01:42]} 23. hxg3 {[%emt 0:00:10]} (23. axb5 gxf2+ 24. Qxf2 Rf8 $14) 23... b4 {[%emt 0:02:30]} 24. a5 {[%emt 0:02:07]} ({Better is} 24. Nd1 $16) 24... Qb8 $1 $11 {[%emt 0:02:32]} 25. Nd1 $36 {[%emt 0:06:16][%mdl 2048] White has some pressure.} O-O {[%emt 0:00:31]} (25... Rxc1 $11 {remains equal.} 26. Rxc1 Qxe5) 26. g4 {[%emt 0:02:53]} Ng7 {[%emt 0:00:08]} 27. f4 {[%emt 0:00:03]} Bb5 {[%emt 0:00:53]} (27... Rxc1 $16 28. Rxc1 Qd8) 28. Bxb5 {[%emt 0:00:19]} axb5 {[%emt 0:00:16]} (28... Rxc1 $16 {was called for.} 29. Rxc1 axb5) 29. Rxc8 $18 {[%emt 0:02:13]} Rxc8 {[%emt 0:00:05]} 30. Nf2 {[%emt 0:00:09]} Qa7 {[%emt 0:02:31]} 31. Qd2 {[%emt 0:01:27]} (31. Qxb5 Qxe3 32. a6 (32. Qxb4 h5 $11) 32... Rc2 33. Qb8+ Kf7 34. Qb7+ Ke8 35. Qb8+ (35. Qxg7 $2 Qxf2+ 36. Kh1 Qh2#) 35... Kf7 36. Qb7+ Ke8 37. Qb8+ (37. Qxg7 $2 Qxf2+ 38. Kh1 Qh2#) 37... Kf7 $11) 31... h5 {[%emt 0:01:08]} 32. Qd4 {[%emt 0:00:21]} (32. Qxb4 Qxe3 33. Qa3 Qxf4 $19) 32... Qa6 {[%emt 0:00:37] [#] This move loses the game for Black.} (32... Qxd4 $16 33. exd4 hxg4) 33. gxh5 {[%emt 0:01:56]} (33. Qxb4 Kh7 34. Kg2 Rc2) 33... gxh5 {[%emt 0:00:25]} 34. Qb6 {[%emt 0:00:29]} (34. Qxb4 Nf5 $16) 34... Qa8 {[%emt 0:00:38]} 35. a6 {[%emt 0:00:08]} (35. Qxb5 Kh8 36. Nh3 (36. Qxb4 Nf5 $16) 36... d4) 35... Rb8 {[%emt 0:00:28]} 36. Qc7 {[%emt 0:00:23]} d4 {[%emt 0:00:25]} 37. e4 {[%emt 0:03:50]} Rf8 {[%emt 0:00:32]} 38. Qb7 {[%emt 0:00:22]} Qd8 {[%emt 0:00:39]} (38... b3 $142 39. Kg2 (39. Qxb5 Qa7 $18) 39... Rb8 40. Qxa8 Rxa8) 39. a7 {[%emt 0:00:34]} Qh4 {[%emt 0:00:30]} 40. a8=Q {[%emt 0:00:00][%cal Oa1a7] White threatens Ra7! and mate.} (40. a8=B {gets mated.} Qg3+ (40... Qxf4 $2 41. Rf1 $19) 41. Kf1 Qxf4 42. Kg1 Qg3+ (42... Qxf2+ 43. Kh1 Rf4 44. Qe7 Rg4 45. Qd8+ Kh7 46. Qh8+ Kxh8 47. Rd1 Rh4#) 43. Kh1 Rxf2) 40... Qg3+ {[%emt 0:00:00]} 41. Kf1 {[%emt 0:00:20]} Qxf4 {[%emt 0:04:33] [#]} 42. Qxf8+ $3 {[%emt 0:37:15]} Kxf8 {[%emt 0:00:22]} 43. Ra8+ {[%emt 0:00:00]} (43. Ra7 $142 Qc1+ 44. Ke2 Qxb2+ 45. Kf3 Qa3+ 46. Rxa3 (46. Kg2 Qxa7 47. Qxa7 h4 $18) 46... bxa3 47. Qa8+ (47. Qxb5 h4 $18) 47... Kf7 48. Qa7+ (48. Qxa3 d3 49. Qxd3 Ke8 50. Qxb5+ Kd8 51. Qb8+ Ke7 52. Qb7+ Kd8 53. Qxg7 h4) 48... Kg6 49. Qe7 (49. Qxd4 a2 $18)) 43... Ne8 {[%emt 0:00:06]} 44. Qc6 {[%emt 0:00:00] Weighted Error Value: White=0.24 (precise) /Black=0.56.  Loses game:     	---       	Black=1      Mistake:       	White=3     	Black=7      Inaccurate:     	White=1     	Black=4      OK:         	White=7     	Black=4      Best:        	White=1     	Black=1      Strong:       	---       	Black=2} 1-0

[Event "Srdja Dragasevic Memorial-A 2024"]
[Site "Cetinje"]
[Date "2024.06.23"]
[Round "2.5"]
[White "Pusara, Mihailo"]
[Black "Kalezic, Blazo"]
[Result "0-1"]
[ECO "C10"]
[WhiteElo "2117"]
[BlackElo "2398"]
[Annotator "RC"]
[PlyCount "52"]
[EventDate "2024.06.23"]
[EventType "swiss"]
[EventCountry "MNE"]
[SourceTitle "playchess.com"]
[Source "ChessBase"]
[SourceQuality "1"]
[TimeControl "40/5400+30:1800+30"]

1. e4 {[%emt 0:12:12]} e6 {[%emt 0:02:18]} 2. d4 {[%emt 0:00:15]} d5 {[%emt 0:00:49]} 3. Nc3 {[%emt 0:00:09]} h6 {[%emt 0:01:37]} 4. Nf3 {[%emt 0:01:07]} Nf6 {[%emt 0:00:15]} 5. e5 {[%emt 0:00:18]} Nfd7 {[%emt 0:00:07]} 6. Ne2 {[%emt 0:00:27]} c5 {[%emt 0:00:48]} 7. c3 {[%emt 0:00:08]} Nc6 {[%emt 0:04:51]} 8. g3 {[%emt 0:01:29]} b5 {[%emt 0:01:02]} 9. Bh3 {[%emt 0:04:31]} g5 {[%emt 0:04:42]} 10. Bg4 {[%emt 0:04:43]} b4 {[%emt 0:10:53]} 11. h4 {[%emt 0:01:51]} gxh4 {[%emt 0:05:43]} 12. Rxh4 {[%emt 0:01:12]} bxc3 {[%emt 0:00:55]} 13. bxc3 {[%emt 0:01:51]} cxd4 {[%emt 0:01:39]} 14. Qa4 {[%emt 0:05:18]} Nc5 {[%emt 0:00:38]} 15. Qxc6+ {[%emt 0:04:59]} Bd7 {[%emt 0:00:49]} 16. Bg5 {[%emt 0:00:42]} Qb8 {[%emt 0:04:31]} 17. Qxa8 {[%emt 0:01:31]} Qxa8 {[%emt 0:00:11]} 18. Nexd4 {[%emt 0:02:47]} Qb7 {[%emt 0:03:59]} 19. Nd2 {[%emt 0:04:18]} Nd3+ {[%emt 0:06:32]} 20. Kf1 {[%emt 0:01:52]} hxg5 {[%emt 0:02:21]} 21. Rxh8 {[%emt 0:00:42]} Qb2 {[%emt 0:01:45]} 22. N4b3 {[%emt 0:08:50]} Qxc3 {[%emt 0:07:15]} 23. Be2 {[%emt 0:01:33]} Bb5 {[%emt 0:03:10]} 24. Nf3 {[%emt 0:09:26]} Bc4 {[%emt 0:01:50]} 25. Rb1 {[%emt 0:03:01]} Nxe5 {[%emt 0:01:54]} 26. Bxc4 {[%emt 0:21:20]} Nxc4 {[%emt 0:02:25]} 0-1

[Event "Srdja Dragasevic Memorial-A 2024"]
[Site "Cetinje"]
[Date "2024.06.23"]
[Round "2.6"]
[White "Arora Honi"]
[Black "Tomic, Aleksandar"]
[Result "1/2-1/2"]
[ECO "B32"]
[WhiteElo "2082"]
[BlackElo "2388"]
[Annotator "RC"]
[PlyCount "81"]
[EventDate "2024.06.23"]
[EventType "swiss"]
[EventCountry "MNE"]
[SourceTitle "playchess.com"]
[Source "ChessBase"]
[SourceQuality "1"]
[TimeControl "40/5400+30:1800+30"]

1. e4 {[%emt 0:00:03]} c5 {[%emt 0:10:31]} 2. Nf3 {[%emt 0:00:10]} Nc6 {[%emt 0:00:07]} 3. d4 {[%emt 0:00:06]} cxd4 {[%emt 0:00:11]} 4. Nxd4 {[%emt 0:00:09]} e5 {[%emt 0:00:07]} 5. Nb5 {[%emt 0:00:07]} d6 {[%emt 0:00:06]} 6. c4 {[%emt 0:00:06]} a6 {[%emt 0:00:19]} 7. N5a3 {[%emt 0:00:55]} f5 {[%emt 0:00:53]} 8. Nc3 {[%emt 0:02:48]} Nf6 {[%emt 0:00:06]} 9. Bd3 {[%emt 0:02:21]} f4 {[%emt 0:00:06]} 10. Nc2 {[%emt 0:01:30]} Be7 {[%emt 0:00:44]} 11. b3 {[%emt 0:10:26]} O-O {[%emt 0:00:12]} 12. Ba3 {[%emt 0:01:59]} Kh8 {[%emt 0:07:22]} 13. Qd2 {[%emt 0:09:08]} Be6 {[%emt 0:13:43]} 14. O-O-O {[%emt 0:11:48]} b5 {[%emt 0:08:12]} 15. cxb5 {[%emt 0:01:52]} axb5 {[%emt 0:02:19]} 16. Bxb5 {[%emt 0:02:31]} Nd4 {[%emt 0:07:34]} 17. Ba4 {[%emt 0:07:23]} Bxb3 {[%emt 0:22:06]} 18. Bxb3 {[%emt 0:01:11]} Nxc2 {[%emt 0:00:27]} 19. Bxd6 {[%emt 0:14:48]} Nd4 {[%emt 0:12:04]} 20. Bxe5 {[%emt 0:06:42]} Nxb3+ {[%emt 0:00:40]} 21. axb3 {[%emt 0:00:02]} Qa5 {[%emt 0:01:52]} 22. Nd5 {[%emt 0:01:16]} Rfc8+ {[%emt 0:08:57]} 23. Kb1 {[%emt 0:00:27]} Bb4 {[%emt 0:00:12]} 24. Qb2 {[%emt 0:03:38]} Nxe4 {[%emt 0:00:55]} 25. Nxb4 {[%emt 0:07:23]} Qxb4 {[%emt 0:00:29]} 26. Bxg7+ {[%emt 0:00:06]} Kg8 {[%emt 0:00:05]} 27. Rd3 {[%emt 0:02:20]} Qb5 {[%emt 0:01:11]} 28. Rhd1 {[%emt 0:01:55]} Qf5 {[%emt 0:01:09]} 29. Bh8 {[%emt 0:06:59]} Qg6 {[%emt 0:00:05]} 30. Bd4 {[%emt 0:01:53]} Rd8 {[%emt 0:00:36]} 31. b4 {[%emt 0:02:13]} Nc5 {[%emt 0:01:02]} 32. bxc5 {[%emt 0:01:37]} Rab8 {[%emt 0:00:14]} 33. g3 {[%emt 0:00:22]} Qe4 {[%emt 0:01:44]} 34. Qxb8 {[%emt 0:00:43]} Rxb8+ {[%emt 0:00:08]} 35. Kc2 {[%emt 0:00:04]} Qd5 {[%emt 0:00:40]} 36. Kd2 {[%emt 0:00:19]} Qa2+ {[%emt 0:00:45]} 37. Ke1 {[%emt 0:00:04]} Qc4 {[%emt 0:00:34]} 38. gxf4 {[%emt 0:00:21]} Rd8 {[%emt 0:00:30]} 39. f5 {[%emt 0:01:10]} Kf7 {[%emt 0:00:20]} 40. f6 {[%emt 0:00:00]} Rd5 {[%emt 0:00:00]} 41. R1d2 {[%emt 0:07:21]} 1/2-1/2

[Event "Srdja Dragasevic Memorial-A 2024"]
[Site "Cetinje"]
[Date "2024.06.23"]
[Round "2.7"]
[White "Skvortsov, Andrei"]
[Black "Engin, Onur Cinar"]
[Result "1-0"]
[ECO "C14"]
[WhiteElo "2331"]
[BlackElo "2114"]
[Annotator "RC"]
[PlyCount "39"]
[EventDate "2024.06.23"]
[EventType "swiss"]
[EventCountry "MNE"]
[SourceTitle "playchess.com"]
[Source "ChessBase"]
[SourceQuality "1"]
[TimeControl "40/5400+30:1800+30"]

1. e4 {[%emt 0:20:13]} e6 {[%emt 0:00:19]} 2. d4 {[%emt 0:00:06]} d5 {[%emt 0:00:07]} 3. Nc3 {[%emt 0:00:02]} Nf6 {[%emt 0:00:44]} 4. Bg5 {[%emt 0:00:05]} Be7 {[%emt 0:01:07]} 5. e5 {[%emt 0:00:09]} Nfd7 {[%emt 0:00:06]} 6. Bxe7 {[%emt 0:00:06]} Qxe7 {[%emt 0:00:06]} 7. f4 {[%emt 0:00:10]} a6 {[%emt 0:02:39]} 8. Nf3 {[%emt 0:00:40]} c5 {[%emt 0:01:11]} 9. Qd2 {[%emt 0:04:05]} Nc6 {[%emt 0:02:18]} 10. h4 {[%emt 0:00:39]} b5 {[%emt 0:07:33]} 11. h5 {[%emt 0:00:23]} h6 {[%emt 0:03:11]} 12. Rh3 {[%emt 0:01:32]} Nb6 {[%emt 0:08:13]} 13. Qf2 {[%emt 0:01:17]} b4 {[%emt 0:02:12]} 14. dxc5 {[%emt 0:04:14]} bxc3 {[%emt 0:00:37]} 15. cxb6 {[%emt 0:00:09]} Qb4 {[%emt 0:04:19]} 16. b3 {[%emt 0:02:55]} Bb7 {[%emt 0:14:24]} 17. a3 {[%emt 0:10:12]} Qxf4 {[%emt 0:05:54]} 18. Rh4 {[%emt 0:00:51]} Qe4+ {[%emt 0:03:55]} 19. Rxe4 {[%emt 0:00:04]} dxe4 {[%emt 0:00:05]} 20. Nd4 {[%emt 0:00:02]} 1-0